[Event "MPL-4 Indian Chess Tour 2022"]
[Site "Chess24"]
[Date "2022.09.27"]
[Round "2.8"]
[White "Karthikeyan, Murali"]
[Black "Pranav, V."]
[Result "1-0"]
[ECO "C84"]
[WhiteElo "2623"]
[BlackElo "2530"]
[Annotator "TA"]
[PlyCount "141"]
[EventDate "2022.09.29"]
[EventType "tourn (rapid)"]
[EventCountry "NET"]
[SourceTitle "playchess.com"]
[Source "ChessBase"]
[SourceQuality "1"]
[WhiteTeam "India"]
[BlackTeam "India"]
[WhiteTeamCountry "IND"]
[BlackTeamCountry "IND"]
[TimeControl "900+10"]

{[%evp 15,141,25,21,10,11,10,14,16,27,11,18,0,3,0,45,31,29,25,24,24,32,29,56,52,72,63,77,84,95,59,77,52,67,40,41,42,42,42,88,85,119,12,11,10,10,10,10,10,57,38,61,26,18,21,31,20,35,0,146,137,188,185,177,166,165,70,65,69,60,64,70,75,93,93,93,93,189,93,119,12,13,8,8,8,28,0,60,60,60,60,60,60,60,60,71,0,54,12,54,27,72,81,141,81,145,81,255,131,837,760,1203,1120,2808,2037,29978,29979,29979,29980,29980,29981,29981,29982,29982,29983,29983,29984,29984,29985]} 1. e4 {[%emt 0:00:00]} e5 {[%emt 0:00:00]} 2. Nf3 {[%emt 0:00:03]} Nc6 {[%emt 0:00:01]} 3. Bb5 {[%emt 0:00:01][%cal Bf1b5,Bb5a4,Ba4b3,Bb3a2][%mdl 32]} a6 {[%emt 0:00:01]} 4. Ba4 {[%emt 0:00:01]} Nf6 {[%emt 0:00:01]} 5. O-O {[%emt 0:00:01]} b5 {[%emt 0:00:01]} 6. Bb3 {[%emt 0:00:01]} Bb7 {[%emt 0:00:01]} 7. d3 {[%emt 0:00:11]} Be7 {[%emt 0:00:20]} 8. Nc3 {[%emt 0:00:18]} O-O {[%emt 0:00:05]} 9. a3 {[%emt 0:00:52] The modern move. C84: Closed Ruy Lopez: Unusual White 6th moves.} Nd4 {[%emt 0:00:13]} 10. Ba2 {[%emt 0:01:08]} Nxf3+ {[%emt 0:00:02]} 11. Qxf3 {[%emt 0:00:02] The position is equal.} d6 {[%emt 0:00:00]} 12. Ne2 $5 {[%emt 0:01:02][%mdl 4] A promising side line.} Bc8 {[%emt 0:00:32] [#]} 13. h3 $146 {[%emt 0:01:07]} ({Predecessor:} 13. Ng3 Be6 14. Nf5 Qd7 15. Bg5 Bxf5 16. exf5 c6 17. Rfe1 Rae8 18. g4 e4 19. Qg2 exd3 20. cxd3 {1-0 (38) Fier,A (2576)-Praggnanandhaa,R (2529) Apeldoorn 2018}) 13... Be6 {[%emt 0:00:40]} 14. Ng3 {[%emt 0:00:27]} g6 {[%emt 0:03:14]} 15. Bh6 {[%emt 0:00:32]} Re8 {[%emt 0:00:02]} 16. Bxe6 {[%emt 0:02:14]} fxe6 {[%emt 0:00:09]} 17. Qe3 {[%emt 0:00:07]} Kh8 {[%emt 0:01:07]} (17... Nd7 {with more complications.} 18. a4 b4 19. f4 exf4 20. Qxf4 Bf6) 18. Qd2 {[%emt 0:00:46]} Ng8 {[%emt 0:01:27]} 19. Be3 {[%emt 0:00:03]} Rf8 {[%emt 0:00:06]} 20. c3 {[%emt 0:01:05]} Bf6 {[%emt 0:02:35]} 21. a4 {[%emt 0:01:39] White is more active.} Qd7 {[%emt 0:01:08]} 22. d4 {[%emt 0:00:35]} bxa4 {[%emt 0:00:49]} 23. dxe5 {[%emt 0:00:40]} Bxe5 {[%emt 0:00:02]} 24. Bd4 {[%emt 0:00:02] Strongly threatening Bxe5+.} Qb5 {[%emt 0:01:13]} 25. Bxe5+ {[%emt 0:01:02]} dxe5 {[%emt 0:00:11]} 26. Qc2 {[%emt 0:00:28]} Rab8 {[%emt 0:00:20]} (26... Qb3 $14 27. Qxb3 axb3) 27. Rxa4 {[%emt 0:00:40]} a5 {[%emt 0:01:27]} 28. Rfa1 {[%emt 0:01:29]} (28. Rb1 $16) 28... Qxb2 $11 {[%emt 0:00:09]} 29. Qxb2 {[%emt 0:00:00]} Rxb2 {[%emt 0:00:02]} 30. f3 {[%emt 0:00:06]} Rd8 {[%emt 0:00:29]} 31. Nf1 {[%emt 0:00:04] Against Rdd2} (31. Rxa5 $2 Rdd2 32. Kh1 Rxg2 $19) 31... Rd3 {[%emt 0:00:50]} (31... Nf6 $11) 32. Rc4 $14 {[%emt 0:00:08]} Rd7 {[%emt 0:00:52]} 33. Rc5 {[%emt 0:01:16]} a4 {[%emt 0:00:03]} 34. Rxe5 {[%emt 0:00:05]} Nf6 {[%emt 0:01:30]} 35. Ra5 {[%emt 0:00:47]} Rd3 {[%emt 0:00:10]} 36. Rc5 {[%emt 0:00:46]} Kg7 {[%emt 0:00:34]} (36... Nh5 $1 $11 {keeps the balance.} 37. Rxc7 (37. Rxa4 Nf4 $11) 37... Rd8) 37. Rxc7+ $16 {[%emt 0:00:02]} Kh6 {[%emt 0:00:01]} (37... Rd7 $16 38. Rxd7+ Nxd7) 38. Rf7 $36 {[%emt 0:01:12][%mdl 2048] White is in control.} (38. Rxa4 $6 Rd1 $14) 38... Nd7 {[%emt 0:00:26]} 39. Rxa4 {[%emt 0:00:07] Threatens to win with Ra7.} Ne5 {[%emt 0:00:27]} 40. Rfa7 {[%emt 0:00:12]} (40. Rc7 $18) 40... Rxc3 $14 {[%emt 0:00:06]} 41. Ra2 {[%emt 0:00:03]} Rb1 {[%emt 0:00:05]} 42. Ra1 {[%emt 0:00:02]} Rb2 {[%emt 0:00:08]} 43. R7a2 {[%emt 0:00:02]} Rcc2 {[%emt 0:00:05] ( -> ...Rxg2+)} 44. Rxb2 {[%emt 0:00:02]} Rxb2 $16 {[%emt 0:00:00][%mdl 4096] Endgame KRN-KRN} 45. Ne3 {[%emt 0:00:15]} Re2 {[%emt 0:00:04]} (45... Kg5 $16) 46. Ra3 {[%emt 0:00:21]} (46. Ng4+ $1 $18 {is more deadly.} Nxg4 47. hxg4) 46... Kg5 {[%emt 0:00:25]} 47. Kf1 {[%emt 0:00:01]} (47. Ng4 $1 $16 {[%cal Rg4e5]} Nxg4 48. hxg4) 47... Rb2 $1 $11 {[%emt 0:00:20]} 48. Nd1 {[%emt 0:00:35]} Rd2 {[%emt 0:00:09]} 49. Nc3 {[%emt 0:00:21]} Rd3 {[%emt 0:00:23]} 50. Ra5 {[%emt 0:00:13]} Kf4 {[%emt 0:00:08] [#]} (50... Rxc3 $11 51. Rxe5+ Kf4 52. Rxe6 Rc1+ 53. Ke2 Rc2+ 54. Kd3 Rxg2) 51. Kf2 $1 $14 {[%emt 0:00:07]} Rxc3 {[%emt 0:00:10] KRN-KR} 52. g3+ {[%emt 0:00:01]} Kg5 {[%emt 0:00:01]} 53. Rxe5+ {[%emt 0:00:01] KR-KR} Kf6 {[%emt 0:00:00]} 54. Ra5 {[%emt 0:00:01]} g5 {[%emt 0:00:12]} 55. Ra7 {[%emt 0:00:13]} ({Better is} 55. g4 $16) 55... h6 {[%emt 0:00:04]} (55... Rc2+ $11 56. Kg1 h5) 56. Ra2 {[%emt 0:00:05]} Rb3 {[%emt 0:00:04]} 57. h4 {[%emt 0:00:12]} gxh4 {[%emt 0:00:15]} 58. gxh4 {[%emt 0:00:00]} Rb6 {[%emt 0:00:23]} (58... Rb1 $142) 59. Kg3 {[%emt 0:00:08]} ({White should try} 59. Ra5) 59... Rb3 {[%emt 0:00:22]} (59... Rb5 $142 60. Ra6 Rc5) 60. Kg4 {[%emt 0:00:14]} (60. Ra5 $142 $1) 60... Re3 $2 {[%emt 0:00:09] [#]} (60... h5+ $16 {was worth a try.} 61. Kg3 (61. Kxh5 Rxf3 62. Rg2 Re3 $16) 61... e5 62. Ra6+ Kg7) 61. Ra7 {[%emt 0:00:10]} (61. Ra8 $1 $18) 61... h5+ $2 {[%emt 0:00:11][%mdl 8192] [#] Black cannot hold the game after this.} (61... Re1 $16 62. Rh7 Kg6) 62. Kf4 $1 $18 {[%emt 0:00:04]} Rb3 {[%emt 0:00:01]} 63. Ra5 {[%emt 0:00:06]} e5+ {[%emt 0:00:09]} 64. Rxe5 {[%emt 0:00:04]} Rxf3+ {[%emt 0:00:14]} 65. Kxf3 {[%emt 0:00:00] White mates.} Kxe5 {[%emt 0:00:00] KPP-KP} 66. Ke3 {[%emt 0:00:00]} Ke6 {[%emt 0:00:17]} 67. Kf4 {[%emt 0:00:01]} Kf6 {[%emt 0:00:00]} 68. e5+ {[%emt 0:00:00]} Ke6 {[%emt 0:00:01]} 69. Ke4 {[%emt 0:00:00]} Ke7 {[%emt 0:00:02]} 70. Kf5 {[%emt 0:00:01]} Kf7 {[%emt 0:00:06]} 71. Kg5 {[%emt 0:00:01] Weighted Error Value: White=0.21 (precise) /Black=0.24 (precise)} 1-0

[Event "MPL-4 Indian Chess Tour 2022"]
[Site "Chess24"]
[Date "2022.09.27"]
[Round "3.1"]
[White "Pranav, V."]
[Black "Raja Harshit"]
[Result "1-0"]
[ECO "E55"]
[WhiteElo "2530"]
[BlackElo "2459"]
[Annotator "TA"]
[PlyCount "133"]
[EventDate "2022.09.29"]
[EventType "tourn (rapid)"]
[EventCountry "NET"]
[SourceTitle "playchess.com"]
[Source "ChessBase"]
[SourceQuality "1"]
[WhiteTeam "India"]
[BlackTeam "India"]
[WhiteTeamCountry "IND"]
[BlackTeamCountry "IND"]
[TimeControl "900+10"]

{[%evp 22,133,21,22,34,30,29,25,29,25,28,23,25,25,64,55,50,47,65,67,77,85,72,70,100,112,99,104,94,108,110,110,106,94,124,132,133,71,84,83,79,63,65,72,142,151,335,175,160,154,191,191,174,169,272,279,281,220,229,198,187,191,233,194,237,147,168,112,282,268,261,114,234,233,200,229,239,222,405,393,325,185,173,92,93,57,126,126,120,8,1586,1509,1811,1852,1749,1215,1335,510,1641,1633,1404,1443,29978,29979,29983,29984,29986,29987,29988,29989,29990,29991,29997,2431]} 1. d4 {[%emt 0:00:00]} Nf6 {[%emt 0:00:00]} 2. c4 {[%emt 0:00:03]} e6 {[%emt 0:00:02]} 3. Nc3 {[%emt 0:00:01]} Bb4 {[%emt 0:00:02]} 4. e3 {[%emt 0:00:01]} O-O {[%emt 0:00:01]} 5. Bd3 {[%emt 0:00:01]} d5 {[%emt 0:00:01]} 6. Nf3 {[%emt 0:00:01]} dxc4 {[%emt 0:00:01]} 7. Bxc4 {[%emt 0:00:01]} c5 {[%emt 0:00:00]} 8. O-O {[%emt 0:00:43]} cxd4 {[%emt 0:00:04]} 9. exd4 {[%emt 0:00:00]} b6 {[%emt 0:00:01]} 10. Qe2 {[%emt 0:00:01]} Bb7 {[%emt 0:00:09]} 11. Rd1 {[%emt 0:00:01]} Nbd7 {[%emt 0:01:16] 11...h6 is setting a new trend.} 12. d5 {[%emt 0:00:14]} exd5 {[%emt 0:00:09] E55: Nimzo-Indian: Rubinstein: Main Line: 7...dxc4 8 Bxc4 Nbd7.} 13. Nxd5 {[%emt 0:00:06]} Re8 {[%emt 0:01:19]} 14. Qc2 {[%emt 0:01:07]} Nxd5 {[%emt 0:01:05] White has an edge.} 15. Bxd5 {[%emt 0:00:08]} Bxd5 {[%emt 0:00:10]} 16. Rxd5 {[%emt 0:00:07]} Qe7 {[%emt 0:00:22][%cal Oe7e1] ( -> ...Qe1+!)} 17. Bg5 {[%emt 0:00:25]} (17. Rh5 $2 Qe1+ $3 {[%mdl 512]} 18. Nxe1 Rxe1#) 17... f6 {[%emt 0:00:08]} 18. Rad1 {[%emt 0:01:20]} Nf8 {[%emt 0:01:07]} 19. Be3 {[%emt 0:00:13]} Rac8 {[%emt 0:00:35] Against Qc4} 20. Qb3 {[%emt 0:00:51] aiming for Rd6+.} Kh8 {[%emt 0:00:08]} 21. h4 {[%emt 0:02:14]} Bc5 {[%emt 0:00:33]} 22. Bxc5 {[%emt 0:01:02] White has more active pieces.} Rxc5 {[%emt 0:01:04]} 23. Re1 $1 $36 {[%emt 0:00:29][%mdl 2048] Keeping Black busy.} Qf7 {[%emt 0:01:16] White must now prevent ...Rxe1+.} 24. Rxe8 {[%emt 0:00:22]} Qxe8 {[%emt 0:00:05]} 25. Rxc5 {[%emt 0:00:05]} bxc5 $16 {[%emt 0:00:03][%mdl 4096] Endgame [#] KQN-KQN} 26. Qd5 $1 {[%emt 0:00:01]} Qe7 {[%emt 0:00:10]} 27. h5 {[%emt 0:01:16] [#]} h6 $146 {[%emt 0:00:47]} ({Predecessor:} 27... Ne6 28. Nh4 Nf8 29. g3 g6 30. h6 Qe1+ 31. Kg2 Qe7 32. Nf3 Ne6 33. Nd2 Kg8 {1-0 (45) Schrancz,I (2134)-Trevis,R (1124) LSS email 2013}) 28. g3 {[%emt 0:00:53]} Kh7 {[%emt 0:01:19]} 29. Kg2 {[%emt 0:00:15]} (29. Nh4 $142) 29... Ne6 {[%emt 0:00:18]} 30. Qe4+ {[%emt 0:01:00]} Kg8 {[%emt 0:00:04]} 31. Qa8+ {[%emt 0:01:08]} Kf7 {[%emt 0:01:11]} 32. Nh4 {[%emt 0:00:28]} Ng5 {[%emt 0:00:57]} (32... Qc7 $142) 33. Qd5+ {[%emt 0:00:02]} Ke8 $2 {[%emt 0:00:32]} (33... Qe6 $16 {was necessary.} 34. Qxc5 a6 35. Qc7+ Kg8) 34. Kf1 {[%emt 0:00:34]} (34. Nf5 $142 Qe4+ 35. Qxe4+ Nxe4 36. Nxg7+ Kf8 37. Nf5) 34... Qe4 $18 {[%emt 0:01:25]} 35. Qxc5 {[%emt 0:00:11]} Qb1+ {[%emt 0:00:17]} 36. Kg2 {[%emt 0:00:08] Qc6+ is the strong threat.} Qe4+ {[%emt 0:00:21]} 37. Kh2 {[%emt 0:00:51]} Qe2 {[%emt 0:01:06]} (37... Qb7 $142 38. Qc4 Ke7) 38. Qxa7 {[%emt 0:01:12]} (38. Qc8+ $6 Kf7 $16) 38... Qxh5 {[%emt 0:00:10]} 39. Kg2 {[%emt 0:01:08] Prevents Nf3.} ({Don't take} 39. Qxg7 $6 Nf3+ 40. Kg2 Nxh4+ 41. gxh4 Qxh4 $16) 39... Ne6 {[%emt 0:00:13]} 40. Qb8+ {[%emt 0:00:24]} Kd7 {[%emt 0:00:19]} 41. Qb7+ {[%emt 0:00:03]} Kd8 {[%emt 0:00:09]} 42. Nf3 {[%emt 0:00:05]} Qg4 {[%emt 0:00:19]} 43. Kh2 {[%emt 0:00:23]} h5 {[%emt 0:00:15]} 44. b4 {[%emt 0:00:23]} ({White should play} 44. Qd5+ $18 Kc7 45. b4) 44... Qc4 $2 {[%emt 0:00:19]} (44... g5 $16) 45. a4 {[%emt 0:00:17]} g5 {[%emt 0:00:16]} 46. a5 {[%emt 0:00:52]} (46. Qf7 $18) 46... Nc7 {[%emt 0:00:22]} (46... h4 $16) 47. Qb6 {[%emt 0:00:06]} Qe6 {[%emt 0:00:34]} 48. Qd4+ {[%emt 0:00:19]} Kc8 {[%emt 0:00:07] [#]} 49. Nd2 $1 {[%emt 0:00:07]} h4 $2 {[%emt 0:00:57]} (49... Qd7 {is a better defense.} 50. Qc3 Qf5) 50. Ne4 {[%emt 0:00:01]} hxg3+ {[%emt 0:00:04]} 51. fxg3 {[%emt 0:00:08]} (51. Kxg3 $142 Qb3+ 52. f3) 51... Qa2+ {[%emt 0:00:03]} 52. Nf2 {[%emt 0:01:01]} (52. Kh1 $18) 52... f5 $16 {[%emt 0:00:21]} 53. Kg1 {[%emt 0:00:23]} Nd5 {[%emt 0:00:24]} (53... Qb1+ $14 54. Kg2 Qb3 55. Qh8+ Kb7) 54. a6 {[%emt 0:00:10] And now Qh8+ would win.} f4 {[%emt 0:00:08]} 55. gxf4 {[%emt 0:00:18]} (55. Qh8+ $16 Kd7 56. Qh7+ Kc6 57. Qb7+ Kd6 58. Qb8+ Kd7 59. Qb5+ Kc7 60. Qb7+ Kd6 61. Qb8+ Kd7 62. Qb5+ Kc7 63. Qb7+ Kd6) 55... Nxf4 $2 {[%emt 0:00:03][%mdl 8192]} (55... Qb1+ $11 56. Kg2 Nxf4+ 57. Kf3 Qb3+ 58. Kg4 Qd5) 56. Qc5+ $18 {[%emt 0:00:10]} Kd7 {[%emt 0:00:18]} 57. a7 {[%emt 0:00:15]} Qa1+ {[%emt 0:00:35]} 58. Kh2 {[%emt 0:00:01] Threatening mate with Qb5+.} Qh8+ {[%emt 0:00:01]} 59. Kg3 {[%emt 0:00:08] Strongly threatening b5.} Qh4+ {[%emt 0:00:24]} (59... Qa8 $142 60. Qf5+ Kc6 61. Qc5+ Kd7 62. Qb5+ Kc8 63. Qe8+ Kb7 64. Qe7+ (64. Qd7+ Kb6 $14) 64... Ka6) 60. Kf3 {[%emt 0:00:07]} Qh5+ {[%emt 0:00:00]} 61. Ke4 {[%emt 0:00:26]} Qe2+ {[%emt 0:00:24]} 62. Kf5 {[%emt 0:00:07] White mates.} Qa6 {[%emt 0:00:24]} 63. Qd4+ {[%emt 0:00:14]} Kc8 {[%emt 0:00:10]} 64. Qh8+ {[%emt 0:00:02]} Kd7 {[%emt 0:00:01]} 65. a8=Q {[%emt 0:00:15][%csl Ga8][%cal Rh8d8]} Qe6+ {[%emt 0:00:14]} 66. Kxg5 {[%emt 0:00:02][%csl Ga8][%cal Rh8d8]} Qe3 {[%emt 0:00:17]} 67. Qhd8+ {[%emt 0:00:04] Weighted Error Value: White=0.29 (precise) /Black=0.28 (precise)} 1-0

[Event "MPL-4 Indian Chess Tour 2022"]
[Site "Chess24"]
[Date "2022.09.27"]
[Round "3.2"]
[White "Puranik, Abhimanyu"]
[Black "Karthikeyan, Murali"]
[Result "1/2-1/2"]
[ECO "A30"]
[WhiteElo "2603"]
[BlackElo "2623"]
[Annotator "TA"]
[PlyCount "71"]
[EventDate "2022.09.29"]
[EventType "tourn (rapid)"]
[EventCountry "NET"]
[SourceTitle "playchess.com"]
[Source "ChessBase"]
[SourceQuality "1"]
[WhiteTeam "India"]
[BlackTeam "India"]
[WhiteTeamCountry "IND"]
[BlackTeamCountry "IND"]
[TimeControl "900+10"]

{[%evp 18,71,24,-3,0,-10,-14,-68,23,4,6,5,5,0,0,0,0,0,0,0,0,0,0,0,0,-1,-1,-1,0,-2,-2,-2,-2,-2,-1,-1,-2,-2,-2,-4,0,-2,-2,-6,0,0,0,-6,0,0,0,-6,0,0,0,-2]} 1. Nf3 {[%emt 0:00:00]} Nf6 {[%emt 0:00:00]} 2. g3 {[%emt 0:00:01]} g6 {[%emt 0:00:18]} 3. b3 {[%emt 0:00:03]} Bg7 {[%emt 0:00:02]} 4. Bb2 {[%emt 0:00:00]} b6 {[%emt 0:00:39]} 5. Bg2 {[%emt 0:00:03]} Bb7 {[%emt 0:00:01]} 6. O-O {[%emt 0:00:01]} O-O {[%emt 0:00:01]} 7. c4 {[%emt 0:00:06]} c5 {[%emt 0:00:01]} 8. d4 {[%emt 0:00:01]} cxd4 {[%emt 0:00:01]} 9. Qxd4 {[%emt 0:00:05]} Nc6 {[%emt 0:00:12]} 10. Qd2 {[%emt 0:00:03]} d5 $1 {[%emt 0:01:26] [#] A30: Symmetrical English: Double Fianchetto and Hedgehog.} 11. Nd4 $146 {[%emt 0:01:42]} ({Predecessor:} 11. Na3 Ne4 12. Qc1 Bxb2 13. Qxb2 dxc4 14. Nxc4 Rc8 15. Rac1 Nd6 16. Ne3 Qd7 17. h4 h5 18. Ng5 {1-0 (36) Andreikin,D (2729)-Beerdsen,T (2494) Chess.com INT 2022}) 11... Nxd4 {[%emt 0:01:03]} (11... Ne4 {is more complex.} 12. Bxe4 dxe4 13. Nxc6 Bxc6 14. Qc2 Bxb2 15. Qxb2 Qd6) 12. Bxd4 {[%emt 0:00:31] [#]} (12. Qxd4 $11 Rb8 13. cxd5) 12... Qd7 {[%emt 0:02:29]} (12... dxc4 $1 $15 13. Bxb7 Rb8) 13. cxd5 $11 {[%emt 0:02:39]} Bxd5 {[%emt 0:02:09] The position is equal.} 14. Bxf6 {[%emt 0:00:56]} Bxf6 {[%emt 0:00:00]} 15. Qxd5 {[%emt 0:00:01]} Qxd5 {[%emt 0:00:06]} 16. Bxd5 {[%emt 0:00:00]} Rad8 {[%emt 0:01:28]} 17. Nc3 {[%emt 0:00:03]} Bxc3 {[%emt 0:00:01]} 18. Rad1 {[%emt 0:00:02]} e6 {[%emt 0:00:21]} 19. Bf3 {[%emt 0:00:05]} b5 {[%emt 0:00:17]} 20. a4 {[%emt 0:00:35]} b4 {[%emt 0:00:37]} 21. Be4 {[%emt 0:00:13]} f5 {[%emt 0:01:04]} 22. Bc2 {[%emt 0:00:13][%cal Be4c2,Bc2d1,Bd1e2,Be2c4][%mdl 32]} Kf7 {[%emt 0:00:43]} 23. Rxd8 {[%emt 0:00:04]} Rxd8 {[%emt 0:00:00]} 24. Rd1 {[%emt 0:00:01]} Rxd1+ {[%emt 0:00:02]} 25. Bxd1 {[%emt 0:00:01][%mdl 4096] Endgame KB-KB} e5 {[%emt 0:00:03]} 26. e3 {[%emt 0:00:07]} Kf6 {[%emt 0:00:04]} 27. h4 {[%emt 0:00:05]} e4 {[%emt 0:00:06]} 28. Be2 {[%emt 0:00:01]} a5 {[%emt 0:00:06]} 29. Bc4 {[%emt 0:00:01]} h6 {[%emt 0:00:00]} 30. Kf1 {[%emt 0:00:02]} g5 {[%emt 0:00:02]} 31. hxg5+ {[%emt 0:00:04]} hxg5 {[%emt 0:00:00]} 32. Ke2 {[%emt 0:00:01]} Ke5 {[%emt 0:00:02]} 33. Bg8 {[%emt 0:00:03]} Kf6 {[%emt 0:00:03]} 34. Bc4 {[%emt 0:00:01]} Ke5 {[%emt 0:00:00]} 35. Bg8 {[%emt 0:00:01]} Kf6 {[%emt 0:00:01]} 36. Bc4 {[%emt 0:00:01] An interesting draw.  Weighted Error Value: White=0.06 (flawless) /Black=0.06 (flawless)} 1/2-1/2

[Event "MPL-4 Indian Chess Tour 2022"]
[Site "Chess24"]
[Date "2022.09.27"]
[Round "3.3"]
[White "Aditya Mittal"]
[Black "Adhiban, B.."]
[Result "1-0"]
[ECO "A90"]
[WhiteElo "2485"]
[BlackElo "2603"]
[Annotator "TA"]
[PlyCount "87"]
[EventDate "2022.09.29"]
[EventType "tourn (rapid)"]
[EventCountry "NET"]
[SourceTitle "playchess.com"]
[Source "ChessBase"]
[SourceQuality "1"]
[WhiteTeam "India"]
[BlackTeam "India"]
[WhiteTeamCountry "IND"]
[BlackTeamCountry "IND"]
[TimeControl "900+10"]

{[%evp 9,87,22,24,25,20,0,0,0,21,18,26,28,29,25,26,37,54,13,29,-28,-19,-23,23,0,3,-2,23,20,14,22,35,35,29,36,35,25,16,18,9,-23,31,0,0,-65,170,164,222,226,222,216,274,261,333,322,316,316,292,281,399,134,165,0,416,415,761,357,354,345,325,326,623,599,847,818,1483,1289,866,534,598,418]} 1. d4 {[%emt 0:00:00]} e6 {[%emt 0:00:00]} 2. c4 {[%emt 0:00:03]} f5 {[%emt 0:00:02]} 3. g3 {[%emt 0:00:03]} Nf6 {[%emt 0:00:01]} 4. Bg2 {[%emt 0:00:01]} d5 {[%emt 0:00:02]} 5. Nh3 {[%emt 0:00:14]} Bd6 {[%emt 0:00:05]} 6. Nd2 {[%emt 0:00:03] A90: Dutch Defence: Miscellaneous and Modern Stonewall (with ...Bd6).} O-O {[%emt 0:00:03] [#]} 7. Nf3 $146 {[%emt 0:00:20]} ({Predecessor:} 7. O-O Nc6 8. e3 b6 9. b3 a5 10. Bb2 Ba6 11. Nf4 Bxf4 12. exf4 Ne4 13. Re1 {0-1 (33) Karjakin,S (2781)-Carlsen,M (2832) Stavanger 2017}) 7... dxc4 {[%emt 0:03:17]} 8. Qa4 {[%emt 0:00:49] The position is equal.} Nc6 {[%emt 0:00:12]} 9. Qxc4 {[%emt 0:01:53]} Bb4+ {[%emt 0:00:03]} 10. Kf1 {[%emt 0:00:07]} Bd6 {[%emt 0:00:17]} 11. Nf4 {[%emt 0:00:39]} Qe7 {[%emt 0:01:54]} 12. h4 {[%emt 0:01:29]} Bd7 {[%emt 0:01:02]} 13. Ng5 {[%emt 0:01:11]} Rae8 {[%emt 0:01:07][%cal Ob7b5]} 14. Bd2 {[%emt 0:00:58]} (14. h5 $142) 14... b5 $1 $11 {[%emt 0:01:39]} 15. Qc3 {[%emt 0:01:18]} Nb4 {[%emt 0:00:54]} (15... Bb4 {was preferrable.} 16. Qd3 Bxd2 17. Qxd2 Nxd4 $1) 16. a3 {[%emt 0:03:02]} Nbd5 {[%emt 0:00:12]} 17. Qb3 {[%emt 0:00:01][%cal Og5e6]} c6 {[%emt 0:00:20]} 18. Rc1 {[%emt 0:00:01]} a5 {[%emt 0:00:43]} 19. Bxa5 {[%emt 0:00:30]} Nxf4 {[%emt 0:00:04]} 20. gxf4 {[%emt 0:00:02]} Bxf4 {[%emt 0:00:01]} 21. Bb4 $36 {[%emt 0:02:21][%mdl 2048] White fights for an advantage.} Bd6 {[%emt 0:00:03]} 22. Rh3 {[%emt 0:01:26]} (22. Bxc6 Bxc6 23. Rxc6 Qb7 $15) (22. Nf3 $5 {[%cal Rf3e5]}) 22... Nd5 {[%emt 0:01:08][%cal Rd5b4]} 23. Bxd6 {[%emt 0:00:32]} Qxd6 {[%emt 0:00:00]} 24. Qg3 {[%emt 0:00:26]} Qe7 {[%emt 0:00:29]} (24... e5 $11 25. dxe5 Rxe5 26. Bxd5+ Qxd5) 25. Qe5 {[%emt 0:00:13]} h6 {[%emt 0:00:41]} 26. Bxd5 {[%emt 0:00:43]} (26. Nf3 $11) 26... hxg5 $2 {[%emt 0:01:11]} (26... exd5 27. Qxe7 Rxe7 28. Nf3 $11) (26... cxd5 $15 {stays ahead.} 27. Nf3 f4) 27. Bxc6 $18 {[%emt 0:00:10]} g4 {[%emt 0:01:13] [#]} (27... Bxc6 $142 28. Rxc6 g4) 28. Bxd7 $1 {[%emt 0:00:14]} Qxd7 {[%emt 0:00:12]} 29. Rhc3 {[%emt 0:00:24] Strongly threatening Rc7.} Qf7 {[%emt 0:01:32]} 30. Rc7 {[%emt 0:00:10]} ({Don't take} 30. Qxb5 $6 Qe7 31. Qe5 Qxh4 $16) 30... Qg6 {[%emt 0:00:02]} 31. Rb7 {[%emt 0:00:17] And now Rcc7 would win.} (31. Qxb5 Qh6 32. Qe5 Rf7 $18) 31... Rf7 {[%emt 0:00:42]} 32. Rxf7 {[%emt 0:00:02]} (32. Qxb5 Rxb7 33. Qxb7 g3 $18) (32. Rxb5 Qh6 33. Rc6 Qxh4 $16) 32... Qxf7 {[%emt 0:00:02][%mdl 4096] Endgame KQR-KQR} 33. Rc7 {[%emt 0:00:01]} ({Much less strong is} 33. Qxb5 Rd8 34. Qe5 Rd5 35. Qb8+ Kh7) 33... Qg6 {[%emt 0:00:01]} (33... Qf6 $142 34. Qxf6 (34. Qxb5 Rd8 $18) 34... gxf6) 34. Qf4 $2 {[%emt 0:00:13]} (34. Qxb5 $18 {and White stays clearly on top.} Rd8 35. Qe5) 34... Qf6 $16 {[%emt 0:00:09]} 35. Qe5 $2 {[%emt 0:00:12]} (35. Qg5) 35... Qg6 $1 $18 {[%emt 0:00:38]} 36. Qxb5 {[%emt 0:00:07]} f4 {[%emt 0:00:07]} (36... Rd8 $142 37. Qe5 Qf6 38. Qxf6 gxf6) 37. Qg5 {[%emt 0:00:10]} (37. h5 $142 Qb1+ 38. Kg2) 37... Qb1+ {[%emt 0:00:22]} 38. Kg2 {[%emt 0:00:02][%csl Gc7][%cal Rg5g7]} Qe4+ {[%emt 0:00:01]} 39. Kg1 {[%emt 0:00:04][%csl Gc7][%cal Rg5g7]} Qb1+ $2 {[%emt 0:00:01]} (39... Qxd4 40. Qxg4 Qd1+ 41. Kh2 Qd4) 40. Kh2 {[%emt 0:00:11][%csl Gc7][%cal Rg5g7] White is clearly winning.} g3+ {[%emt 0:00:01]} 41. fxg3 {[%emt 0:00:13]} fxg3+ {[%emt 0:00:00]} 42. Qxg3 {[%emt 0:00:02][%csl Gc7][%cal Rg3g7]} Qh7 {[%emt 0:00:00]} 43. Rb7 {[%emt 0:00:16]} Rf8 {[%emt 0:00:19]} 44. Rb8 {[%emt 0:00:09] Weighted Error Value: White=0.43/Black=0.48} 1-0